[Event "Early-Titled-Tuesday-Blitz-January-16-2024"]
[Site "Chess.com"]
[Date "2024.01.16"]
[Round "1"]
[White "giomar27"]
[Black "dozer80"]
[Result "1-0"]
[WhiteElo "2424"]
[BlackElo "2740"]
[TimeControl "180+1"]
[EndTime "8:08:24 PST"]
[Termination "giomar27 won on time"]

1. d4 {[%clk 0:03:00.9]} 1... Nf6 {[%clk 0:02:59.6]} 2. Nc3 {[%clk 0:03:01.4]}
2... g6 {[%clk 0:03:00.2]} 3. Bf4 {[%clk 0:03:00.3]} 3... c6 {[%clk 0:02:57.4]}
4. e3 {[%clk 0:02:53.1]} 4... Bg7 {[%clk 0:02:55.2]} 5. h4 {[%clk 0:02:52.9]}
5... h6 {[%clk 0:02:52.2]} 6. Bd3 {[%clk 0:02:50.7]} 6... d6 {[%clk 0:02:50.4]}
7. Nf3 {[%clk 0:02:48]} 7... Bg4 {[%clk 0:02:47.4]} 8. Qd2 {[%clk 0:02:47]} 8...
Nbd7 {[%clk 0:02:45.2]} 9. Nh2 {[%clk 0:02:31.9]} 9... Be6 {[%clk 0:02:37.7]}
10. e4 {[%clk 0:02:27]} 10... b5 {[%clk 0:02:25.1]} 11. f3 {[%clk 0:02:22.6]}
11... Nb6 {[%clk 0:02:22.8]} 12. d5 {[%clk 0:02:16.1]} 12... cxd5 {[%clk
0:02:19.5]} 13. Bxb5+ {[%clk 0:02:16]} 13... Kf8 {[%clk 0:02:17]} 14. e5 {[%clk
0:02:02.9]} 14... dxe5 {[%clk 0:01:58.5]} 15. Bxe5 {[%clk 0:02:03]} 15... Rc8
{[%clk 0:01:52.1]} 16. O-O-O {[%clk 0:02:01.6]} 16... Nfd7 {[%clk 0:01:24.7]}
17. Bxg7+ {[%clk 0:01:59.7]} 17... Kxg7 {[%clk 0:01:25.6]} 18. Kb1 {[%clk
0:01:52.7]} 18... Qc7 {[%clk 0:01:24.7]} 19. Ng4 {[%clk 0:01:45.7]} 19... Bxg4
{[%clk 0:01:21.6]} 20. fxg4 {[%clk 0:01:39.8]} 20... e6 {[%clk 0:01:21.6]} 21.
h5 {[%clk 0:01:25.5]} 21... g5 {[%clk 0:01:19.2]} 22. Rhf1 {[%clk 0:01:18.1]}
22... Rhf8 {[%clk 0:01:06.3]} 23. Ba6 {[%clk 0:01:03.1]} 23... Rb8 {[%clk
0:01:01.8]} 24. Qd4+ {[%clk 0:01:03.1]} 24... Qe5 {[%clk 0:01:00.2]} 25. Rfe1
{[%clk 0:00:57.8]} 25... Qxd4 {[%clk 0:00:59.6]} 26. Rxd4 {[%clk 0:00:58.7]}
26... Nc5 {[%clk 0:00:58]} 27. Bd3 {[%clk 0:00:49.7]} 27... Rfc8 {[%clk
0:00:56.8]} 28. Kc1 {[%clk 0:00:48.1]} 28... Nbd7 {[%clk 0:00:45.5]} 29. Bb5
{[%clk 0:00:39.9]} 29... Nf6 {[%clk 0:00:44.3]} 30. Bd3 {[%clk 0:00:32.4]} 30...
a5 {[%clk 0:00:42.4]} 31. Na4 {[%clk 0:00:26]} 31... Nxd3+ {[%clk 0:00:37.4]}
32. Rxd3 {[%clk 0:00:25.2]} 32... Nxg4 {[%clk 0:00:37.8]} 33. Kd2 {[%clk
0:00:21.5]} 33... Nf2 {[%clk 0:00:35.5]} 34. Ra3 {[%clk 0:00:20.5]} 34... Ne4+
{[%clk 0:00:35]} 35. Kd1 {[%clk 0:00:20.3]} 35... Rb4 {[%clk 0:00:32.7]} 36. c3
{[%clk 0:00:19.2]} 36... Rb5 {[%clk 0:00:27.8]} 37. Kc2 {[%clk 0:00:18]} 37...
f5 {[%clk 0:00:27]} 38. Re2 {[%clk 0:00:17.2]} 38... Kf6 {[%clk 0:00:25.1]} 39.
Rb3 {[%clk 0:00:15.9]} 39... Rb4 {[%clk 0:00:19.9]} 40. Nb6 {[%clk 0:00:14.2]}
40... Rc6 {[%clk 0:00:18.4]} 41. Nd7+ {[%clk 0:00:13.9]} 41... Ke7 {[%clk
0:00:17.7]} 42. Ne5 {[%clk 0:00:14]} 42... Rc8 {[%clk 0:00:17.5]} 43. Ng6+
{[%clk 0:00:13.9]} 43... Kf6 {[%clk 0:00:17]} 44. Ra3 {[%clk 0:00:13.8]} 44...
Rb5 {[%clk 0:00:15.7]} 45. Ra4 {[%clk 0:00:10.9]} 45... g4 {[%clk 0:00:13.4]}
46. Nf4 {[%clk 0:00:10.6]} 46... Rcb8 {[%clk 0:00:11.3]} 47. b3 {[%clk
0:00:10.1]} 47... Rc8 {[%clk 0:00:10.8]} 48. Re3 {[%clk 0:00:10.7]} 48... Rbc5
{[%clk 0:00:10.6]} 49. c4 {[%clk 0:00:08.1]} 49... dxc4 {[%clk 0:00:08.5]} 50.
bxc4 {[%clk 0:00:08.6]} 50... Rxc4+ {[%clk 0:00:09.2]} 51. Rxc4 {[%clk
0:00:09.5]} 51... Rxc4+ {[%clk 0:00:08.2]} 52. Kb3 {[%clk 0:00:10.4]} 52... Rb4+
{[%clk 0:00:08.4]} 53. Ka3 {[%clk 0:00:10.9]} 53... Ke5 {[%clk 0:00:04.6]} 54.
g3 {[%clk 0:00:11.1]} 54... Kd4 {[%clk 0:00:04.2]} 55. Re1 {[%clk 0:00:10.7]}
1-0

[Event "Early-Titled-Tuesday-Blitz-January-16-2024"]
[Site "Chess.com"]
[Date "2024.01.16"]
[Round "1"]
[White "crazy_m_attack"]
[Black "bascheyaro"]
[Result "0-1"]
[WhiteElo "2442"]
[BlackElo "2814"]
[TimeControl "180+1"]
[EndTime "8:08:25 PST"]
[Termination "bascheyaro won on time"]

1. e4 {[%clk 0:03:00.9]} 1... e6 {[%clk 0:03:00]} 2. d4 {[%clk 0:03:00.9]} 2...
d5 {[%clk 0:03:00.1]} 3. Nc3 {[%clk 0:03:01.6]} 3... Bb4 {[%clk 0:02:59.8]} 4.
e5 {[%clk 0:03:00.4]} 4... Ne7 {[%clk 0:02:59.9]} 5. Bd2 {[%clk 0:02:58.2]} 5...
b6 {[%clk 0:02:59.9]} 6. Bb5+ {[%clk 0:02:47.3]} 6... c6 {[%clk 0:02:59]} 7. Bd3
{[%clk 0:02:46.9]} 7... Ba6 {[%clk 0:02:58.8]} 8. Bxa6 {[%clk 0:02:44.3]} 8...
Nxa6 {[%clk 0:02:59.7]} 9. Qe2 {[%clk 0:02:44.1]} 9... Nb8 {[%clk 0:02:59.9]}
10. Nf3 {[%clk 0:02:37.4]} 10... O-O {[%clk 0:02:58.4]} 11. O-O {[%clk
0:02:35.9]} 11... c5 {[%clk 0:02:57.1]} 12. Nb5 {[%clk 0:02:31.6]} 12... Bxd2
{[%clk 0:02:56.7]} 13. Qxd2 {[%clk 0:02:32.5]} 13... cxd4 {[%clk 0:02:57.1]} 14.
Nfxd4 {[%clk 0:02:29.7]} 14... Nbc6 {[%clk 0:02:57]} 15. f4 {[%clk 0:02:26.1]}
15... Nxd4 {[%clk 0:02:56.1]} 16. Nxd4 {[%clk 0:02:25.9]} 16... Qc8 {[%clk
0:02:52.2]} 17. c3 {[%clk 0:02:25.8]} 17... h5 {[%clk 0:02:45.3]} 18. Qf2 {[%clk
0:02:15.6]} 18... g6 {[%clk 0:02:44.2]} 19. Qh4 {[%clk 0:02:12]} 19... Qd8
{[%clk 0:02:12.1]} 20. Rf3 {[%clk 0:01:40.7]} 20... Nf5 {[%clk 0:02:07.2]} 21.
Nxf5 {[%clk 0:01:38]} 21... exf5 {[%clk 0:02:06.8]} 22. Qf2 {[%clk 0:01:35.9]}
22... Qc7 {[%clk 0:02:00.1]} 23. Rd1 {[%clk 0:01:30.4]} 23... Rad8 {[%clk
0:02:00.2]} 24. Rfd3 {[%clk 0:01:29.5]} 24... Qc4 {[%clk 0:01:58.3]} 25. b3
{[%clk 0:01:29.8]} 25... Qc6 {[%clk 0:01:51.8]} 26. Qf3 {[%clk 0:01:29.2]} 26...
b5 {[%clk 0:01:34.3]} 27. Rxd5 {[%clk 0:01:22.8]} 27... Rxd5 {[%clk 0:01:34.1]}
28. Rxd5 {[%clk 0:01:13.8]} 28... Qb6+ {[%clk 0:01:28.5]} 29. Qf2 {[%clk
0:01:07.1]} 29... Qb7 {[%clk 0:01:26.8]} 30. Qc5 {[%clk 0:00:59.9]} 30... a6
{[%clk 0:01:26.8]} 31. Qd4 {[%clk 0:00:53]} 31... a5 {[%clk 0:01:00.6]} 32. e6
{[%clk 0:00:50.3]} 32... Qe7 {[%clk 0:00:40.2]} 33. exf7+ {[%clk 0:00:45.7]}
33... Kh7 {[%clk 0:00:40.3]} 34. Re5 {[%clk 0:00:32.4]} 34... Qxf7 {[%clk
0:00:39.6]} 35. Qc5 {[%clk 0:00:21.4]} 35... Kh6 {[%clk 0:00:26.7]} 36. Re7
{[%clk 0:00:12.2]} 36... Qf6 {[%clk 0:00:23.4]} 37. Qe5 {[%clk 0:00:10.7]} 37...
b4 {[%clk 0:00:19.1]} 38. Qxf6 {[%clk 0:00:08.2]} 38... Rxf6 {[%clk 0:00:20]}
39. c4 {[%clk 0:00:08.9]} 39... Rd6 {[%clk 0:00:19.7]} 40. Re2 {[%clk
0:00:07.8]} 40... h4 {[%clk 0:00:19.2]} 41. g3 {[%clk 0:00:07.4]} 41... hxg3
{[%clk 0:00:17.7]} 42. hxg3 {[%clk 0:00:08.3]} 42... Rd3 {[%clk 0:00:18]} 43.
Kg2 {[%clk 0:00:08.4]} 43... Rc3 {[%clk 0:00:18.4]} 44. Kh3 {[%clk 0:00:06.9]}
44... g5 {[%clk 0:00:18.5]} 45. fxg5+ {[%clk 0:00:05.2]} 45... Kxg5 {[%clk
0:00:18.7]} 46. Re5 {[%clk 0:00:05.2]} 46... a4 {[%clk 0:00:16.3]} 47. Rb5
{[%clk 0:00:02.8]} 47... axb3 {[%clk 0:00:16.1]} 48. axb3 {[%clk 0:00:03.7]}
48... Rxb3 {[%clk 0:00:16.6]} 49. c5 {[%clk 0:00:04.3]} 49... f4 {[%clk
0:00:16.2]} 50. c6+ {[%clk 0:00:04.8]} 50... Kf6 {[%clk 0:00:16.6]} 51. c7
{[%clk 0:00:04.9]} 51... Rxg3+ {[%clk 0:00:15.6]} 52. Kh2 {[%clk 0:00:05.4]}
52... Rc3 {[%clk 0:00:15.7]} 53. Rxb4 {[%clk 0:00:05.8]} 53... Kf5 {[%clk
0:00:16]} 54. Kg2 {[%clk 0:00:05.2]} 54... Rxc7 {[%clk 0:00:14.9]} 55. Kf2
{[%clk 0:00:03.1]} 55... Kg4 {[%clk 0:00:14.5]} 56. Rb8 {[%clk 0:00:02.6]} 56...
Rc2+ {[%clk 0:00:14.5]} 57. Kf1 {[%clk 0:00:02.9]} 57... Kg3 {[%clk 0:00:14.9]}
58. Rb4 {[%clk 0:00:02.1]} 58... Rc1+ {[%clk 0:00:14.5]} 59. Ke2 {[%clk
0:00:02.2]} 59... f3+ {[%clk 0:00:15.1]} 60. Ke3 {[%clk 0:00:02.8]} 60... Re1+
{[%clk 0:00:15.3]} 61. Kd2 {[%clk 0:00:02.8]} 61... f2 {[%clk 0:00:15.9]} 0-1

[Event "Early-Titled-Tuesday-Blitz-January-16-2024"]
[Site "Chess.com"]
[Date "2024.01.16"]
[Round "1"]
[White "brm72"]
[Black "Kopytkin"]
[Result "1/2-1/2"]
[WhiteElo "2702"]
[BlackElo "2390"]
[TimeControl "180+1"]
[EndTime "8:08:29 PST"]
[Termination "Game drawn by stalemate"]

1. e4 {[%clk 0:03:00.9]} 1... Nf6 {[%clk 0:02:59.8]} 2. e5 {[%clk 0:02:57.6]}
2... Nd5 {[%clk 0:02:59.4]} 3. d4 {[%clk 0:02:58.3]} 3... d6 {[%clk 0:02:59.2]}
4. c4 {[%clk 0:02:58.3]} 4... Nb6 {[%clk 0:02:59.3]} 5. exd6 {[%clk 0:02:58.9]}
5... cxd6 {[%clk 0:03:00.2]} 6. Nc3 {[%clk 0:02:58]} 6... g6 {[%clk 0:03:00.8]}
7. Be3 {[%clk 0:02:58.1]} 7... Bg7 {[%clk 0:03:01.1]} 8. Rc1 {[%clk 0:02:58.1]}
8... O-O {[%clk 0:03:01.8]} 9. Nf3 {[%clk 0:02:53.3]} 9... Bg4 {[%clk
0:02:59.9]} 10. b3 {[%clk 0:02:28.1]} 10... d5 {[%clk 0:02:50.6]} 11. c5 {[%clk
0:02:24.8]} 11... Nc8 {[%clk 0:02:50.8]} 12. Be2 {[%clk 0:02:18.5]} 12... Nc6
{[%clk 0:02:48.4]} 13. O-O {[%clk 0:02:13]} 13... e6 {[%clk 0:02:48.2]} 14. a3
{[%clk 0:02:05.2]} 14... N8e7 {[%clk 0:02:45.8]} 15. Ne1 {[%clk 0:01:46.1]}
15... Bxe2 {[%clk 0:02:43.1]} 16. Nxe2 {[%clk 0:01:47]} 16... Nf5 {[%clk
0:02:26.7]} 17. b4 {[%clk 0:01:45.7]} 17... Qf6 {[%clk 0:02:03.3]} 18. Nc2
{[%clk 0:01:42.6]} 18... a6 {[%clk 0:01:57.6]} 19. Qd2 {[%clk 0:01:42.6]} 19...
Nxe3 {[%clk 0:01:55.6]} 20. fxe3 {[%clk 0:01:43.5]} 20... Qg5 {[%clk 0:01:44.4]}
21. Rf3 {[%clk 0:01:37.2]} 21... e5 {[%clk 0:01:26.9]} 22. Rg3 {[%clk
0:01:36.2]} 22... Qh5 {[%clk 0:01:26]} 23. Rh3 {[%clk 0:01:34.1]} 23... Qg5
{[%clk 0:01:23.9]} 24. Rg3 {[%clk 0:01:34.3]} 24... Qh5 {[%clk 0:01:23]} 25. Rf1
{[%clk 0:01:32.5]} 25... Rad8 {[%clk 0:01:13.2]} 26. Ne1 {[%clk 0:01:20.5]}
26... Qh4 {[%clk 0:00:54.7]} 27. Nf3 {[%clk 0:01:17.9]} 27... Qe7 {[%clk
0:00:54.7]} 28. a4 {[%clk 0:01:12.3]} 28... exd4 {[%clk 0:00:42.2]} 29. exd4
{[%clk 0:01:10.1]} 29... Rfe8 {[%clk 0:00:39.6]} 30. Re1 {[%clk 0:00:57.5]}
30... Qe3+ {[%clk 0:00:26]} 31. Qxe3 {[%clk 0:00:53.3]} 31... Rxe3 {[%clk
0:00:26.9]} 32. Kf2 {[%clk 0:00:46]} 32... Rde8 {[%clk 0:00:26.6]} 33. b5 {[%clk
0:00:38.9]} 33... axb5 {[%clk 0:00:25.8]} 34. axb5 {[%clk 0:00:39.2]} 34... Nxd4
{[%clk 0:00:22.6]} 35. Nfxd4 {[%clk 0:00:20.1]} 35... Bxd4 {[%clk 0:00:21.6]}
36. Rxe3 {[%clk 0:00:18.3]} 36... Bxe3+ {[%clk 0:00:20.6]} 37. Kf3 {[%clk
0:00:18.5]} 37... Bxc5 {[%clk 0:00:21]} 38. Rc1 {[%clk 0:00:11.9]} 38... b6
{[%clk 0:00:19.4]} 39. Nf4 {[%clk 0:00:10.9]} 39... Re5 {[%clk 0:00:17.7]} 40.
Rd1 {[%clk 0:00:10.8]} 40... Re3+ {[%clk 0:00:12.2]} 41. Kg4 {[%clk 0:00:11.1]}
41... d4 {[%clk 0:00:12.4]} 42. Nd5 {[%clk 0:00:10.2]} 42... Re6 {[%clk
0:00:10.5]} 43. Kf3 {[%clk 0:00:09.3]} 43... Kg7 {[%clk 0:00:10.6]} 44. g4
{[%clk 0:00:09.5]} 44... h6 {[%clk 0:00:10.2]} 45. h4 {[%clk 0:00:09.7]} 45...
Re5 {[%clk 0:00:10]} 46. Nf4 {[%clk 0:00:09.4]} 46... Re3+ {[%clk 0:00:10.1]}
47. Kg2 {[%clk 0:00:09.7]} 47... Rb3 {[%clk 0:00:10]} 48. g5 {[%clk 0:00:08.5]}
48... hxg5 {[%clk 0:00:09.4]} 49. hxg5 {[%clk 0:00:09.4]} 49... Rxb5 {[%clk
0:00:09.7]} 50. Kf3 {[%clk 0:00:10]} 50... Rb3+ {[%clk 0:00:09.3]} 51. Kg4
{[%clk 0:00:10.4]} 51... Re3 {[%clk 0:00:09.2]} 52. Nd5 {[%clk 0:00:10.5]} 52...
Re5 {[%clk 0:00:08.9]} 53. Nf6 {[%clk 0:00:09.9]} 53... Be7 {[%clk 0:00:08.2]}
54. Ne8+ {[%clk 0:00:09.2]} 54... Kf8 {[%clk 0:00:06.4]} 55. Nf6 {[%clk
0:00:09.1]} 55... Bxf6 {[%clk 0:00:05.9]} 56. gxf6 {[%clk 0:00:10]} 56... Re6
{[%clk 0:00:06.6]} 57. Kg5 {[%clk 0:00:09.1]} 57... Rd6 {[%clk 0:00:06.2]} 58.
Rc1 {[%clk 0:00:09]} 58... Rd8 {[%clk 0:00:06]} 59. Rh1 {[%clk 0:00:06.2]} 59...
Kg8 {[%clk 0:00:05.3]} 60. Rd1 {[%clk 0:00:04.9]} 60... d3 {[%clk 0:00:05.6]}
61. Kf4 {[%clk 0:00:05.5]} 61... b5 {[%clk 0:00:05.7]} 62. Ke5 {[%clk
0:00:06.3]} 62... b4 {[%clk 0:00:05.5]} 63. Rc1 {[%clk 0:00:05.4]} 63... d2
{[%clk 0:00:05.3]} 64. Rc8 {[%clk 0:00:06.3]} 64... Rxc8 {[%clk 0:00:04.7]} 65.
Kd6 {[%clk 0:00:05.9]} 65... Rd8+ {[%clk 0:00:05.6]} 66. Ke7 {[%clk 0:00:06.8]}
66... d1=Q {[%clk 0:00:06.2]} 1/2-1/2

[Event "Early-Titled-Tuesday-Blitz-January-16-2024"]
[Site "Chess.com"]
[Date "2024.01.16"]
[Round "1"]
[White "sergoy"]
[Black "guillembaches"]
[Result "1-0"]
[WhiteElo "3014"]
[BlackElo "2522"]
[TimeControl "180+1"]
[EndTime "8:08:30 PST"]
[Termination "sergoy won on time"]

1. d4 {[%clk 0:03:00.3]} 1... d5 {[%clk 0:02:59.9]} 2. c4 {[%clk 0:03:00.3]}
2... e6 {[%clk 0:03:00.5]} 3. Nf3 {[%clk 0:03:00.5]} 3... a6 {[%clk 0:03:00.7]}
4. cxd5 {[%clk 0:03:00.1]} 4... exd5 {[%clk 0:03:00.6]} 5. Nc3 {[%clk
0:02:59.6]} 5... Nf6 {[%clk 0:03:00.8]} 6. Bg5 {[%clk 0:02:59.8]} 6... Be6
{[%clk 0:03:01]} 7. Bxf6 {[%clk 0:03:00.2]} 7... Qxf6 {[%clk 0:02:59.8]} 8. Qb3
{[%clk 0:03:00.4]} 8... b5 {[%clk 0:02:41]} 9. a4 {[%clk 0:03:00.3]} 9... b4
{[%clk 0:02:36.4]} 10. Nxd5 {[%clk 0:03:00.5]} 10... Qd8 {[%clk 0:02:36.5]} 11.
e4 {[%clk 0:03:01.1]} 11... c6 {[%clk 0:02:36.6]} 12. Qe3 {[%clk 0:03:00.5]}
12... cxd5 {[%clk 0:02:31.5]} 13. exd5 {[%clk 0:03:01.4]} 13... Qxd5 {[%clk
0:02:30.6]} 14. Rc1 {[%clk 0:03:02]} 14... Be7 {[%clk 0:02:15.7]} 15. Bd3 {[%clk
0:03:01.5]} 15... Qd8 {[%clk 0:02:00.6]} 16. Be4 {[%clk 0:02:54.3]} 16... Nd7
{[%clk 0:01:40.3]} 17. d5 {[%clk 0:02:48.1]} 17... Bg4 {[%clk 0:01:32.5]} 18. d6
{[%clk 0:02:48.2]} 18... Rb8 {[%clk 0:01:16.6]} 19. dxe7 {[%clk 0:02:35.3]}
19... Qxe7 {[%clk 0:01:15.8]} 20. O-O {[%clk 0:02:23.6]} 20... Bxf3 {[%clk
0:01:14]} 21. gxf3 {[%clk 0:02:13.5]} 21... Ne5 {[%clk 0:00:56.8]} 22. f4 {[%clk
0:02:06.7]} 22... Ng4 {[%clk 0:00:52.4]} 23. Bc6+ {[%clk 0:02:06.7]} 23... Kf8
{[%clk 0:00:52.5]} 24. Qg3 {[%clk 0:02:00.4]} 24... h5 {[%clk 0:00:48.4]} 25.
Rfe1 {[%clk 0:01:40.5]} 25... Qf6 {[%clk 0:00:47.1]} 26. h3 {[%clk 0:01:40.4]}
26... Nh6 {[%clk 0:00:46.3]} 27. Be4 {[%clk 0:00:56.3]} 27... Nf5 {[%clk
0:00:26.9]} 28. Qg5 {[%clk 0:00:54.6]} 28... Nd4 {[%clk 0:00:23.7]} 29. Rc7
{[%clk 0:00:44.3]} 29... Rh6 {[%clk 0:00:13.2]} 30. Kh1 {[%clk 0:00:36.2]} 30...
Re8 {[%clk 0:00:11.8]} 31. Re3 {[%clk 0:00:32.3]} 31... Qd6 {[%clk 0:00:08]} 32.
Rc1 {[%clk 0:00:20.6]} 32... Ne6 {[%clk 0:00:08]} 33. Qe5 {[%clk 0:00:15.7]}
33... Qxe5 {[%clk 0:00:06.4]} 34. fxe5 {[%clk 0:00:15.9]} 34... Nd4 {[%clk
0:00:06.5]} 35. Bg2 {[%clk 0:00:13.4]} 35... Nf5 {[%clk 0:00:05.5]} 36. Re4
{[%clk 0:00:13]} 36... Rhe6 {[%clk 0:00:05]} 37. Rc5 {[%clk 0:00:11.4]} 37... g6
{[%clk 0:00:04.7]} 38. Kh2 {[%clk 0:00:10.1]} 38... Kg7 {[%clk 0:00:05]} 39. h4
{[%clk 0:00:10.5]} 39... R6e7 {[%clk 0:00:05.3]} 40. Bh3 {[%clk 0:00:10.3]}
40... Rb7 {[%clk 0:00:04.4]} 41. Bxf5 {[%clk 0:00:09.1]} 41... gxf5 {[%clk
0:00:05.3]} 42. Re3 {[%clk 0:00:09.7]} 42... Rd8 {[%clk 0:00:05.6]} 43. e6
{[%clk 0:00:08.4]} 43... fxe6 {[%clk 0:00:05.3]} 44. Rxe6 {[%clk 0:00:09]} 44...
Rd2 {[%clk 0:00:06.1]} 45. Kg3 {[%clk 0:00:09]} 45... Rxb2 {[%clk 0:00:06.6]}
46. Rcc6 {[%clk 0:00:09.4]} 46... b3 {[%clk 0:00:07.1]} 47. Rg6+ {[%clk
0:00:09.6]} 47... Kf7 {[%clk 0:00:07.6]} 48. Rh6 {[%clk 0:00:10.2]} 48... Kg7
{[%clk 0:00:07.9]} 49. Rcg6+ {[%clk 0:00:10]} 49... Kf7 {[%clk 0:00:08.2]} 50.
Rxa6 {[%clk 0:00:10.8]} 50... Kg7 {[%clk 0:00:08.3]} 51. Rhg6+ {[%clk
0:00:08.3]} 51... Kf7 {[%clk 0:00:08.5]} 52. Rgf6+ {[%clk 0:00:08]} 52... Kg7
{[%clk 0:00:08.8]} 53. Rfb6 {[%clk 0:00:03.1]} 53... Rxb6 {[%clk 0:00:07.5]} 54.
Rxb6 {[%clk 0:00:04]} 54... Rb1 {[%clk 0:00:07.8]} 55. Kf4 {[%clk 0:00:03.4]}
55... b2 {[%clk 0:00:08.1]} 56. f3 {[%clk 0:00:03.5]} 56... Ra1 {[%clk
0:00:08.5]} 57. Rxb2 {[%clk 0:00:03.6]} 57... Rxa4+ {[%clk 0:00:09]} 58. Kg5
{[%clk 0:00:04.3]} 58... Rxh4 {[%clk 0:00:09.6]} 59. Kxh4 {[%clk 0:00:04.4]} 1-0

[Event "Early-Titled-Tuesday-Blitz-January-16-2024"]
[Site "Chess.com"]
[Date "2024.01.16"]
[Round "1"]
[White "viktorgen2021"]
[Black "Bushonica"]
[Result "1-0"]
[WhiteElo "2550"]
[BlackElo "1812"]
[TimeControl "180+1"]
[EndTime "8:08:31 PST"]
[Termination "viktorgen2021 won by resignation"]

1. d4 {[%clk 0:02:58]} 1... d5 {[%clk 0:02:56]} 2. c4 {[%clk 0:02:57.5]} 2... e6
{[%clk 0:02:54.4]} 3. Nf3 {[%clk 0:02:55.9]} 3... c5 {[%clk 0:02:54.2]} 4. cxd5
{[%clk 0:02:54.2]} 4... exd5 {[%clk 0:02:54.1]} 5. Nc3 {[%clk 0:02:54.7]} 5...
Nf6 {[%clk 0:02:48.2]} 6. g3 {[%clk 0:02:51.1]} 6... Nc6 {[%clk 0:02:47.7]} 7.
Bg2 {[%clk 0:02:50.4]} 7... c4 {[%clk 0:02:45.3]} 8. O-O {[%clk 0:02:50.5]} 8...
Be7 {[%clk 0:02:43.9]} 9. Bg5 {[%clk 0:02:45]} 9... O-O {[%clk 0:02:43.7]} 10.
Ne5 {[%clk 0:02:44.5]} 10... a6 {[%clk 0:02:38.9]} 11. Nxc6 {[%clk 0:02:34.3]}
11... bxc6 {[%clk 0:02:38.7]} 12. e4 {[%clk 0:02:32.4]} 12... Be6 {[%clk
0:02:35.9]} 13. Re1 {[%clk 0:02:22.1]} 13... Qd7 {[%clk 0:02:28.1]} 14. Qa4
{[%clk 0:02:07.1]} 14... dxe4 {[%clk 0:02:21.4]} 15. Rad1 {[%clk 0:02:02.5]}
15... Nd5 {[%clk 0:02:16]} 16. Nxe4 {[%clk 0:01:56.2]} 16... Bxg5 {[%clk
0:02:10.3]} 17. Nxg5 {[%clk 0:01:56.5]} 17... c3 {[%clk 0:02:09]} 18. Nxe6
{[%clk 0:01:51.8]} 18... fxe6 {[%clk 0:02:08.5]} 19. Qc2 {[%clk 0:01:50.9]}
19... cxb2 {[%clk 0:02:05.7]} 20. Qxb2 {[%clk 0:01:51.8]} 20... Rab8 {[%clk
0:02:04.8]} 21. Qd2 {[%clk 0:01:49.6]} 21... Qf7 {[%clk 0:01:59.7]} 22. Bh3
{[%clk 0:01:43.5]} 22... Nc7 {[%clk 0:01:57.2]} 23. Re2 {[%clk 0:01:41.8]} 23...
Rbd8 {[%clk 0:01:51.6]} 24. Qc2 {[%clk 0:01:39]} 24... Qf3 {[%clk 0:01:47.2]}
25. Bg2 {[%clk 0:01:35.4]} 25... Qf5 {[%clk 0:01:36.1]} 26. Qxc6 {[%clk
0:01:29.3]} 26... Nb5 {[%clk 0:01:31.3]} 27. Qxe6+ {[%clk 0:01:17.5]} 27... Qxe6
{[%clk 0:01:29.7]} 28. Rxe6 {[%clk 0:01:18.4]} 28... Nxd4 {[%clk 0:01:29.2]} 29.
Ree1 {[%clk 0:01:13]} 29... Nb5 {[%clk 0:01:25.5]} 30. Bd5+ {[%clk 0:01:09.5]}
30... Kh8 {[%clk 0:01:24.1]} 31. Bb3 {[%clk 0:01:08.9]} 31... Rc8 {[%clk
0:01:13.3]} 32. Re6 {[%clk 0:01:03.8]} 32... a5 {[%clk 0:01:09.7]} 33. Ra6
{[%clk 0:01:03]} 33... Nc3 {[%clk 0:01:06.6]} 34. Rd2 {[%clk 0:00:58.9]} 34...
Ne4 {[%clk 0:01:02.9]} 35. Re2 {[%clk 0:00:56]} 35... Nc3 {[%clk 0:00:53.3]} 36.
Rc2 {[%clk 0:00:53.4]} 36... Rc5 {[%clk 0:00:45.1]} 37. Kg2 {[%clk 0:00:50.9]}
37... Rcf5 {[%clk 0:00:42.6]} 38. Rxc3 {[%clk 0:00:49.5]} 38... Rxf2+ {[%clk
0:00:41.8]} 39. Kh3 {[%clk 0:00:50.1]} 39... h6 {[%clk 0:00:36.9]} 40. Rac6
{[%clk 0:00:48.5]} 40... Kh7 {[%clk 0:00:35.2]} 41. Bc2+ {[%clk 0:00:47.7]}
41... Kg8 {[%clk 0:00:34.7]} 42. Rc8 {[%clk 0:00:47.3]} 42... Rxc8 {[%clk
0:00:25.8]} 43. Rxc8+ {[%clk 0:00:48.2]} 43... Kf7 {[%clk 0:00:25.8]} 44. Bb3+
{[%clk 0:00:47.3]} 44... Kg6 {[%clk 0:00:24]} 45. Rc6+ {[%clk 0:00:46.6]} 45...
Kf5 {[%clk 0:00:22.6]} 46. Rc5+ {[%clk 0:00:46]} 46... Ke4 {[%clk 0:00:22.2]}
47. Rxa5 {[%clk 0:00:45.8]} 47... g5 {[%clk 0:00:20.1]} 48. Ra4+ {[%clk
0:00:37.7]} 48... Ke3 {[%clk 0:00:18.3]} 49. Kg4 {[%clk 0:00:34]} 49... Rxh2
{[%clk 0:00:17.1]} 50. Ra6 {[%clk 0:00:33.5]} 50... Rh1 {[%clk 0:00:14.2]} 51.
a4 {[%clk 0:00:32]} 51... Kd3 {[%clk 0:00:13.8]} 52. a5 {[%clk 0:00:31.8]} 52...
Kc3 {[%clk 0:00:12.7]} 53. Be6 {[%clk 0:00:31.9]} 53... Kb4 {[%clk 0:00:12.4]}
54. Ra8 {[%clk 0:00:31.6]} 54... Kb5 {[%clk 0:00:12]} 55. a6 {[%clk 0:00:29.2]}
55... Kb6 {[%clk 0:00:11.9]} 56. Bd5 {[%clk 0:00:25.7]} 56... Rc1 {[%clk
0:00:11.1]} 57. Bb7 {[%clk 0:00:25.5]} 57... Rc4+ {[%clk 0:00:10.6]} 58. Kh5
{[%clk 0:00:25.8]} 58... Rc3 {[%clk 0:00:08.4]} 59. Kg4 {[%clk 0:00:23.9]} 59...
Rc4+ {[%clk 0:00:08.6]} 60. Kh3 {[%clk 0:00:24.5]} 60... h5 {[%clk 0:00:08.1]}
61. Rh8 {[%clk 0:00:24.2]} 61... g4+ {[%clk 0:00:04.2]} 62. Kh4 {[%clk
0:00:24.4]} 62... Rc7 {[%clk 0:00:03.1]} 63. Rxh5 {[%clk 0:00:23.7]} 63... Ka7
{[%clk 0:00:02.1]} 64. Kxg4 {[%clk 0:00:23.5]} 64... Rg7+ {[%clk 0:00:02]} 65.
Rg5 {[%clk 0:00:24]} 1-0